[Event "Titled Tuesday Blitz May 9 Late 2023"]
[White "Bryakin, Mikhail"]
[Black "Mikhalsky, Vladimir"]
[WhiteFideId "4165314"]
[BlackFideId "14144352"]
[WhiteElo "2467"]
[BlackElo "2236"]
[Result "1-0"]
[Round "11"]
[TimeControl "180+2"]
[Date "2023.05.09"]
[WhiteClock "0:02:13"]
[BlackClock "0:00:00"]

1. g3 {[%clk 0:03:00]}  c5 {[%clk 0:02:59]} 2. Bg2 {[%clk 0:02:48]}  d5 {[%clk 0:02:58]} 3. d3 {[%clk 0:02:48]}  Nc6 {[%clk 0:02:54]} 4. Nd2 {[%clk 0:02:48]}  e5 {[%clk 0:02:53]} 5. e4 {[%clk 0:02:48]}  d4 {[%clk 0:02:53]} 6. Ngf3 {[%clk 0:02:48]}  f6 {[%clk 0:02:52]} 7. O-O {[%clk 0:02:48]}  Be6 {[%clk 0:02:51]} 8. Ne1 {[%clk 0:02:47]}  Qd7 {[%clk 0:02:51]} 9. f4 {[%clk 0:02:48]}  Bd6 {[%clk 0:02:50]} 10. Nc4 {[%clk 0:02:47]}  Bc7 {[%clk 0:02:50]} 11. a4 {[%clk 0:02:48]}  Nge7 {[%clk 0:02:48]} 12. f5 {[%clk 0:02:48]}  Bf7 {[%clk 0:02:47]} 13. g4 {[%clk 0:02:49]}  h6 {[%clk 0:02:41]} 14. h3 {[%clk 0:02:49]}  O-O-O {[%clk 0:02:37]} 15. Bd2 {[%clk 0:02:50]}  Kb8 {[%clk 0:02:36]} 16. a5 {[%clk 0:02:51]}  Nc8 {[%clk 0:02:34]} 17. Bf3 {[%clk 0:02:50]}  Nd6 {[%clk 0:02:32]} 18. b3 {[%clk 0:02:49]}  Rc8 {[%clk 0:02:28]} 19. Kg2 {[%clk 0:02:49]}  Qd8 {[%clk 0:02:28]} 20. Nxd6 {[%clk 0:02:47]}  Qxd6 {[%clk 0:02:22]} 21. a6 {[%clk 0:02:45]}  b5 {[%clk 0:02:19]} 22. h4 {[%clk 0:02:46]}  Bb6 {[%clk 0:02:07]} 23. Be2 {[%clk 0:02:46]}  Nb4 {[%clk 0:02:06]} 24. Nf3 {[%clk 0:02:45]}  Ka8 {[%clk 0:02:02]} 25. g5 {[%clk 0:02:45]}  hxg5 {[%clk 0:01:56]} 26. hxg5 {[%clk 0:02:46]}  c4 {[%clk 0:01:49]} 27. bxc4 {[%clk 0:02:45]}  bxc4 {[%clk 0:01:49]} 28. g6 {[%clk 0:02:41]}  Be8 {[%clk 0:01:43]} 29. dxc4 {[%clk 0:02:40]}  Bc6 {[%clk 0:01:40]} 30. Bd3 {[%clk 0:02:40]}  Rh5 {[%clk 0:01:33]} 31. Qe1 {[%clk 0:02:39]}  Bc5 {[%clk 0:01:30]} 32. Rh1 {[%clk 0:02:35]}  Rch8 {[%clk 0:01:27]} 33. Rxh5 {[%clk 0:02:35]}  Rxh5 {[%clk 0:01:28]} 34. Bxb4 {[%clk 0:02:31]}  Bxb4 {[%clk 0:01:27]} 35. Qg3 {[%clk 0:02:31]}  Qd8 {[%clk 0:01:08]} 36. Rh1 {[%clk 0:02:30]}  Qh8 {[%clk 0:01:04]} 37. Rh2 {[%clk 0:02:27]}  Rxh2+ {[%clk 0:00:59]} 38. Qxh2 {[%clk 0:02:27]}  Qxh2+ {[%clk 0:00:56]} 39. Nxh2 {[%clk 0:02:28]}  Kb8 {[%clk 0:00:56]} 40. Ng4 {[%clk 0:02:29]}  Bf8 {[%clk 0:00:55]} 41. c5 {[%clk 0:02:27]}  Kc7 {[%clk 0:00:46]} 42. Kf3 {[%clk 0:02:28]}  Kd8 {[%clk 0:00:43]} 43. Bc4 {[%clk 0:02:26]}  Bd7 {[%clk 0:00:36]} 44. Ke2 {[%clk 0:02:20]}  Kc7 {[%clk 0:00:32]} 45. Kd3 {[%clk 0:02:20]}  Bc8 {[%clk 0:00:31]} 46. Bb5 {[%clk 0:02:18]}  Bxc5 {[%clk 0:00:19]} 47. Nxf6 {[%clk 0:02:18]}  Kb6 {[%clk 0:00:18]} 48. Bc4 {[%clk 0:02:16]}  Bf8 {[%clk 0:00:14]} 49. Ng4 {[%clk 0:02:14]}  Kc5 {[%clk 0:00:06]} 50. Nxe5 {[%clk 0:02:14]}  Kb4 {[%clk 0:00:05]} 51. Nc6+ {[%clk 0:02:13]}  Kc5 {[%clk 0:00:04]} 52. Nxd4 {[%clk 0:02:14]}  Kb6 {[%clk 0:00:03]} 53. e5 {[%clk 0:02:13]}  Bc5 {[%clk 0:00:02]} 54. Ne6 {[%clk 0:02:11]}  Bxe6 {[%clk 0:00:01]} 55. Bxe6 {[%clk 0:02:12]}  Kxa6 {[%clk 0:00:01]} 56. f6 {[%clk 0:02:13]}  Bf8 {[%clk 0:00:01]} 57. Kc4 {[%clk 0:02:11]}  Kb6 {[%clk 0:00:01]} 58. Kd5 {[%clk 0:02:12]}  Kc7 {[%clk 0:00:02]} 59. Bf5 {[%clk 0:02:12]}  Kd8 {[%clk 0:00:00]} 60. Ke6 {[%clk 0:02:13]} 1-0


[Site "https://www.chess.com"]

[Event "Titled Tuesday Blitz May 9 Late 2023"]
[White "Mirzoev, Azer"]
[Black "Koutsin"]
[WhiteFideId "13400304"]
[WhiteElo "2525"]
[BlackElo "2432"]
[Result "1-0"]
[Round "11"]
[TimeControl "180+2"]
[Date "2023.05.09"]
[WhiteClock "0:00:24"]
[BlackClock "0:00:00"]

1. c4 {[%clk 0:03:00]}  Nf6 {[%clk 0:02:59]} 2. Nc3 {[%clk 0:03:00]}  e6 {[%clk 0:02:59]} 3. e4 {[%clk 0:02:59]}  d5 {[%clk 0:02:59]} 4. cxd5 {[%clk 0:02:58]}  exd5 {[%clk 0:02:59]} 5. e5 {[%clk 0:02:59]}  Ne4 {[%clk 0:03:00]} 6. Qf3 {[%clk 0:02:53]}  Nxc3 {[%clk 0:02:58]} 7. dxc3 {[%clk 0:02:53]}  Be6 {[%clk 0:02:51]} 8. Qg3 {[%clk 0:02:49]}  c5 {[%clk 0:02:47]} 9. Nh3 {[%clk 0:02:42]}  Nc6 {[%clk 0:02:37]} 10. Ng5 {[%clk 0:02:36]}  Qd7 {[%clk 0:02:35]} 11. Bb5 {[%clk 0:02:33]}  a6 {[%clk 0:02:35]} 12. Ba4 {[%clk 0:02:32]}  O-O-O {[%clk 0:02:15]} 13. O-O {[%clk 0:02:30]}  h6 {[%clk 0:02:09]} 14. Nxe6 {[%clk 0:02:29]}  fxe6 {[%clk 0:02:09]} 15. f4 {[%clk 0:02:27]}  Qf7 {[%clk 0:01:49]} 16. Be3 {[%clk 0:02:15]}  b5 {[%clk 0:01:40]} 17. Bd1 {[%clk 0:02:06]}  g6 {[%clk 0:01:28]} 18. a4 {[%clk 0:02:05]}  Kb7 {[%clk 0:01:28]} 19. axb5 {[%clk 0:02:04]}  axb5 {[%clk 0:01:28]} 20. Bg4 {[%clk 0:01:52]}  h5 {[%clk 0:01:25]} 21. Qh3 {[%clk 0:01:49]}  Re8 {[%clk 0:01:23]} 22. Bf3 {[%clk 0:01:47]}  Qf5 {[%clk 0:01:12]} 23. Qh4 {[%clk 0:01:38]}  Be7 {[%clk 0:01:09]} 24. Qf2 {[%clk 0:01:32]}  Rhf8 {[%clk 0:00:46]} 25. Bxc5 {[%clk 0:01:17]}  Qxf4 {[%clk 0:00:41]} 26. Bxe7 {[%clk 0:01:08]}  Rxe7 {[%clk 0:00:40]} 27. Qc5 {[%clk 0:01:05]}  Rff7 {[%clk 0:00:09]} 28. Qxb5+ {[%clk 0:01:03]}  Kc7 {[%clk 0:00:10]} 29. Qc5 {[%clk 0:00:53]}  Qxe5 {[%clk 0:00:08]} 30. Ra7+ {[%clk 0:00:51]}  Kd8 {[%clk 0:00:04]} 31. Ra6 {[%clk 0:00:35]}  Rc7 {[%clk 0:00:01]} 32. Rxc6 {[%clk 0:00:30]}  Rxc6 {[%clk 0:00:01]} 33. Qxc6 {[%clk 0:00:29]}  Rc7 {[%clk 0:00:02]} 34. Qb6 {[%clk 0:00:28]}  Kd7 {[%clk 0:00:02]} 35. h3 {[%clk 0:00:27]}  Qg3 {[%clk 0:00:00]} 36. Be2 {[%clk 0:00:24]} 1-0


[Site "https://www.chess.com"]

[Event "Titled Tuesday Blitz May 9 Late 2023"]
[White "Golubev, Mikhail"]
[Black "Nikologorskiy, Konstantin"]
[WhiteFideId "14100983"]
[BlackFideId "24111708"]
[WhiteElo "2374"]
[BlackElo "2273"]
[Result "0-1"]
[Round "11"]
[TimeControl "180+2"]
[Date "2023.05.09"]
[WhiteClock "0:00:39"]
[BlackClock "0:01:53"]

1. e4 {[%clk 0:03:00]}  c5 {[%clk 0:02:53]} 2. Nf3 {[%clk 0:03:00]}  d6 {[%clk 0:02:52]} 3. d4 {[%clk 0:02:59]}  cxd4 {[%clk 0:02:53]} 4. Nxd4 {[%clk 0:03:00]}  Nf6 {[%clk 0:02:54]} 5. Nc3 {[%clk 0:03:00]}  a6 {[%clk 0:02:54]} 6. Bc4 {[%clk 0:02:59]}  e6 {[%clk 0:02:45]} 7. Bb3 {[%clk 0:02:59]}  Be7 {[%clk 0:02:37]} 8. f4 {[%clk 0:02:58]}  O-O {[%clk 0:02:34]} 9. Be3 {[%clk 0:02:57]}  e5 {[%clk 0:02:34]} 10. Nf5 {[%clk 0:02:44]}  Bxf5 {[%clk 0:02:33]} 11. exf5 {[%clk 0:02:45]}  exf4 {[%clk 0:02:29]} 12. Bxf4 {[%clk 0:02:45]}  Qb6 {[%clk 0:02:29]} 13. Qf3 {[%clk 0:02:36]}  Nc6 {[%clk 0:02:29]} 14. Be3 {[%clk 0:02:16]}  Qa5 {[%clk 0:02:25]} 15. O-O-O {[%clk 0:02:05]}  Ne5 {[%clk 0:02:21]} 16. Qg3 {[%clk 0:01:59]}  Rfc8 {[%clk 0:02:20]} 17. Nd5 {[%clk 0:01:53]}  Nxd5 {[%clk 0:02:19]} 18. Rxd5 {[%clk 0:01:53]}  Qc7 {[%clk 0:02:12]} 19. Rhd1 {[%clk 0:01:50]}  b5 {[%clk 0:02:05]} 20. Bf4 {[%clk 0:01:43]}  a5 {[%clk 0:01:59]} 21. Rxe5 {[%clk 0:01:22]}  dxe5 {[%clk 0:02:00]} 22. Bxe5 {[%clk 0:01:21]}  Bg5+ {[%clk 0:02:00]} 23. Kb1 {[%clk 0:01:19]}  Qc5 {[%clk 0:01:58]} 24. h4 {[%clk 0:01:07]}  a4 {[%clk 0:01:57]} 25. Bxf7+ {[%clk 0:00:46]}  Kxf7 {[%clk 0:01:54]} 26. hxg5 {[%clk 0:00:39]}  Qxc2+ {[%clk 0:01:53]} 0-1


[Site "https://www.chess.com"]

[Event "Titled Tuesday Blitz May 9 Late 2023"]
[White "brm72"]
[Black "Rangel, Daniel"]
[BlackFideId "2124475"]
[WhiteElo "2532"]
[BlackElo "2256"]
[Result "1-0"]
[Round "11"]
[TimeControl "180+2"]
[Date "2023.05.09"]
[WhiteClock "0:00:21"]
[BlackClock "0:00:07"]

1. e4 {[%clk 0:03:00]}  c5 {[%clk 0:02:59]} 2. Nf3 {[%clk 0:02:59]}  g6 {[%clk 0:02:59]} 3. d4 {[%clk 0:02:59]}  cxd4 {[%clk 0:03:00]} 4. Nxd4 {[%clk 0:03:00]}  Bg7 {[%clk 0:02:59]} 5. Nc3 {[%clk 0:02:59]}  Nc6 {[%clk 0:02:59]} 6. Be3 {[%clk 0:03:00]}  Nf6 {[%clk 0:02:59]} 7. f3 {[%clk 0:02:58]}  O-O {[%clk 0:02:59]} 8. Bc4 {[%clk 0:02:57]}  Re8 {[%clk 0:02:55]} 9. Qd2 {[%clk 0:02:56]}  e6 {[%clk 0:02:51]} 10. O-O-O {[%clk 0:02:48]}  d5 {[%clk 0:02:51]} 11. exd5 {[%clk 0:02:47]}  exd5 {[%clk 0:02:51]} 12. Bb3 {[%clk 0:02:47]}  Na5 {[%clk 0:02:45]} 13. Kb1 {[%clk 0:02:36]}  Nc4 {[%clk 0:02:40]} 14. Bxc4 {[%clk 0:02:36]}  dxc4 {[%clk 0:02:41]} 15. h4 {[%clk 0:02:36]}  Nd5 {[%clk 0:02:28]} 16. Nxd5 {[%clk 0:02:19]}  Qxd5 {[%clk 0:02:29]} 17. Bh6 {[%clk 0:02:19]}  Qxd4 {[%clk 0:02:19]} 18. Qxd4 {[%clk 0:02:20]}  Bxd4 {[%clk 0:02:19]} 19. Rxd4 {[%clk 0:02:20]}  Be6 {[%clk 0:02:20]} 20. Rhd1 {[%clk 0:02:18]}  f6 {[%clk 0:02:14]} 21. a4 {[%clk 0:02:08]}  Kf7 {[%clk 0:02:10]} 22. Bf4 {[%clk 0:02:04]}  Re7 {[%clk 0:02:01]} 23. g4 {[%clk 0:01:56]}  Rc8 {[%clk 0:01:46]} 24. Ka2 {[%clk 0:01:47]}  b6 {[%clk 0:01:25]} 25. Ka3 {[%clk 0:01:46]}  a6 {[%clk 0:01:21]} 26. Kb4 {[%clk 0:01:40]}  Rb7 {[%clk 0:01:15]} 27. Rd6 {[%clk 0:01:36]}  b5 {[%clk 0:01:07]} 28. a5 {[%clk 0:01:35]}  Ra8 {[%clk 0:00:56]} 29. h5 {[%clk 0:01:26]}  gxh5 {[%clk 0:00:48]} 30. gxh5 {[%clk 0:01:27]}  Bf5 {[%clk 0:00:48]} 31. c3 {[%clk 0:01:22]}  Re7 {[%clk 0:00:42]} 32. R1d2 {[%clk 0:01:18]}  Bd3 {[%clk 0:00:34]} 33. Rb6 {[%clk 0:01:16]}  Raa7 {[%clk 0:00:29]} 34. h6 {[%clk 0:01:10]}  Re2 {[%clk 0:00:25]} 35. Rxe2 {[%clk 0:01:01]}  Bxe2 {[%clk 0:00:25]} 36. Be3 {[%clk 0:01:02]}  Bxf3 {[%clk 0:00:23]} 37. Rd6 {[%clk 0:00:42]}  Ra8 {[%clk 0:00:20]} 38. Rd7+ {[%clk 0:00:42]}  Ke6 {[%clk 0:00:14]} 39. Rxh7 {[%clk 0:00:41]}  Ke5 {[%clk 0:00:14]} 40. Bd4+ {[%clk 0:00:40]}  Ke6 {[%clk 0:00:13]} 41. Rg7 {[%clk 0:00:38]}  Be4 {[%clk 0:00:11]} 42. Kc5 {[%clk 0:00:32]}  Rc8+ {[%clk 0:00:09]} 43. Kb6 {[%clk 0:00:32]}  Rc6+ {[%clk 0:00:09]} 44. Ka7 {[%clk 0:00:32]}  Rd6 {[%clk 0:00:05]} 45. h7 {[%clk 0:00:31]}  Bxh7 {[%clk 0:00:03]} 46. Rxh7 {[%clk 0:00:30]}  b4 {[%clk 0:00:04]} 47. Rc7 {[%clk 0:00:25]}  bxc3 {[%clk 0:00:02]} 48. bxc3 {[%clk 0:00:26]}  Kd5 {[%clk 0:00:02]} 49. Rc5+ {[%clk 0:00:26]}  Ke4 {[%clk 0:00:02]} 50. Rxc4 {[%clk 0:00:26]}  Kd3 {[%clk 0:00:01]} 51. Rc5 {[%clk 0:00:26]}  Re6 {[%clk 0:00:01]} 52. Rf5 {[%clk 0:00:25]}  Kc4 {[%clk 0:00:02]} 53. Rxf6 {[%clk 0:00:25]}  Re7+ {[%clk 0:00:02]} 54. Kxa6 {[%clk 0:00:24]}  Rh7 {[%clk 0:00:03]} 55. Rc6+ {[%clk 0:00:24]}  Kb3 {[%clk 0:00:03]} 56. Rb6+ {[%clk 0:00:24]}  Ka4 {[%clk 0:00:04]} 57. Rb4+ {[%clk 0:00:22]}  Ka3 {[%clk 0:00:04]} 58. Kb5 {[%clk 0:00:21]}  Ka2 {[%clk 0:00:04]} 59. Ka4 {[%clk 0:00:21]}  Rh5 {[%clk 0:00:05]} 60. a6 {[%clk 0:00:21]}  Rh6 {[%clk 0:00:05]} 61. a7 {[%clk 0:00:21]}  Ra6+ {[%clk 0:00:03]} 62. Kb5 {[%clk 0:00:22]}  Ra3 {[%clk 0:00:03]} 63. Ra4 {[%clk 0:00:22]}  Kb2 {[%clk 0:00:03]} 64. Rxa3 {[%clk 0:00:22]}  Kb1 {[%clk 0:00:04]} 65. a8=Q {[%clk 0:00:23]}  Kc2 {[%clk 0:00:03]} 66. Qg2+ {[%clk 0:00:22]}  Kd3 {[%clk 0:00:04]} 67. Qf1+ {[%clk 0:00:21]}  Ke4 {[%clk 0:00:04]} 68. Qe2+ {[%clk 0:00:21]}  Kd5 {[%clk 0:00:05]} 69. c4+ {[%clk 0:00:21]}  Kd6 {[%clk 0:00:06]} 70. Qe5+ {[%clk 0:00:21]}  Kd7 {[%clk 0:00:06]} 71. Ra7+ {[%clk 0:00:21]}  Kc8 {[%clk 0:00:07]} 72. Qc7# {[%clk 0:00:21]} 1-0


[Site "https://www.chess.com"]

[Event "Titled Tuesday Blitz May 9 Late 2023"]
[White "Pasti, Aron"]
[Black "Sreyas Payyappat"]
[WhiteFideId "785857"]
[BlackFideId "46674969"]
[WhiteElo "2173"]
[BlackElo "2043"]
[Result "1-0"]
[Round "11"]
[TimeControl "180+2"]
[Date "2023.05.09"]
[WhiteClock "0:02:24"]
[BlackClock "0:01:38"]

1. e4 {[%clk 0:03:00]}  c6 {[%clk 0:02:58]} 2. Nf3 {[%clk 0:03:00]}  d5 {[%clk 0:02:59]} 3. Nc3 {[%clk 0:03:00]}  dxe4 {[%clk 0:02:58]} 4. Nxe4 {[%clk 0:03:01]}  Nf6 {[%clk 0:02:58]} 5. Nxf6+ {[%clk 0:03:01]}  exf6 {[%clk 0:02:59]} 6. d4 {[%clk 0:03:01]}  Bd6 {[%clk 0:02:59]} 7. Bd3 {[%clk 0:03:01]}  O-O {[%clk 0:03:00]} 8. O-O {[%clk 0:03:01]}  Re8 {[%clk 0:02:59]} 9. h3 {[%clk 0:03:01]}  Nd7 {[%clk 0:02:58]} 10. Nh4 {[%clk 0:02:59]}  Nf8 {[%clk 0:02:58]} 11. Nf5 {[%clk 0:02:59]}  Bc7 {[%clk 0:02:51]} 12. Qg4 {[%clk 0:02:50]}  Ng6 {[%clk 0:02:47]} 13. h4 {[%clk 0:02:49]}  Bxf5 {[%clk 0:02:32]} 14. Bxf5 {[%clk 0:02:47]}  Qd6 {[%clk 0:02:31]} 15. g3 {[%clk 0:02:47]}  Rad8 {[%clk 0:02:27]} 16. h5 {[%clk 0:02:46]}  Ne7 {[%clk 0:02:26]} 17. Bf4 {[%clk 0:02:43]}  Qd5 {[%clk 0:02:08]} 18. Bxc7 {[%clk 0:02:36]}  Nxf5 {[%clk 0:02:07]} 19. Bxd8 {[%clk 0:02:36]}  Nxd4 {[%clk 0:02:07]} 20. Rad1 {[%clk 0:02:25]}  Rxd8 {[%clk 0:01:47]} 21. c3 {[%clk 0:02:24]}  Nf3+ {[%clk 0:01:38]} 22. Qxf3 {[%clk 0:02:24]} 1-0


[Site "https://www.chess.com"]

[Event "Titled Tuesday Blitz May 9 Late 2023"]
[White "Martic, Ivan"]
[Black "Figorito, Nick"]
[WhiteFideId "929301"]
[BlackFideId "30923689"]
[WhiteElo "2360"]
[BlackElo "2370"]
[Result "1-0"]
[Round "11"]
[TimeControl "180+2"]
[Date "2023.05.09"]
[WhiteClock "0:00:36"]
[BlackClock "0:00:13"]

1. c4 {[%clk 0:02:51]}  Nf6 {[%clk 0:02:59]} 2. Nc3 {[%clk 0:02:51]}  d5 {[%clk 0:03:00]} 3. cxd5 {[%clk 0:02:50]}  Nxd5 {[%clk 0:03:01]} 4. e4 {[%clk 0:02:49]}  Nxc3 {[%clk 0:03:01]} 5. bxc3 {[%clk 0:02:48]}  g6 {[%clk 0:03:00]} 6. h4 {[%clk 0:02:47]}  h5 {[%clk 0:02:58]} 7. Bc4 {[%clk 0:02:41]}  Bg7 {[%clk 0:02:53]} 8. Nf3 {[%clk 0:02:34]}  O-O {[%clk 0:02:43]} 9. Ng5 {[%clk 0:02:32]}  c5 {[%clk 0:02:30]} 10. Qc2 {[%clk 0:02:23]}  Nc6 {[%clk 0:02:27]} 11. a4 {[%clk 0:02:19]}  Ne5 {[%clk 0:02:23]} 12. Be2 {[%clk 0:02:07]}  c4 {[%clk 0:02:08]} 13. Ba3 {[%clk 0:02:04]}  Nd3+ {[%clk 0:02:05]} 14. Bxd3 {[%clk 0:02:02]}  cxd3 {[%clk 0:02:06]} 15. Qb3 {[%clk 0:02:01]}  Bf6 {[%clk 0:01:51]} 16. Nf3 {[%clk 0:01:58]}  Be6 {[%clk 0:01:49]} 17. Qxb7 {[%clk 0:01:48]}  Bg4 {[%clk 0:01:29]} 18. e5 {[%clk 0:01:42]}  Bxf3 {[%clk 0:01:27]} 19. gxf3 {[%clk 0:01:42]}  Rb8 {[%clk 0:01:08]} 20. Qxa7 {[%clk 0:01:40]}  Qd5 {[%clk 0:00:59]} 21. Qe3 {[%clk 0:01:32]}  Bxe5 {[%clk 0:00:52]} 22. Qe4 {[%clk 0:01:29]}  Qb3 {[%clk 0:00:39]} 23. O-O {[%clk 0:01:21]}  Bf6 {[%clk 0:00:35]} 24. Qxd3 {[%clk 0:01:19]}  Rfd8 {[%clk 0:00:29]} 25. Qe3 {[%clk 0:01:17]}  Qd5 {[%clk 0:00:27]} 26. d4 {[%clk 0:01:15]}  Bxh4 {[%clk 0:00:27]} 27. Kg2 {[%clk 0:01:11]}  Bg5 {[%clk 0:00:26]} 28. Qe4 {[%clk 0:01:07]}  Qd7 {[%clk 0:00:25]} 29. Bc5 {[%clk 0:01:02]}  Bf6 {[%clk 0:00:25]} 30. a5 {[%clk 0:01:00]}  Ra8 {[%clk 0:00:25]} 31. a6 {[%clk 0:00:59]}  Kg7 {[%clk 0:00:25]} 32. a7 {[%clk 0:00:59]}  Rh8 {[%clk 0:00:26]} 33. Rab1 {[%clk 0:00:56]}  h4 {[%clk 0:00:26]} 34. Rb7 {[%clk 0:00:54]}  h3+ {[%clk 0:00:26]} 35. Kh1 {[%clk 0:00:54]}  Qa4 {[%clk 0:00:24]} 36. Bxe7 {[%clk 0:00:49]}  Qa6 {[%clk 0:00:21]} 37. Bxf6+ {[%clk 0:00:45]}  Qxf6 {[%clk 0:00:22]} 38. Qe5 {[%clk 0:00:44]}  Rhc8 {[%clk 0:00:16]} 39. Rfb1 {[%clk 0:00:36]}  Rxc3 {[%clk 0:00:14]} 40. Rxf7+ {[%clk 0:00:36]}  Kxf7 {[%clk 0:00:14]} 41. Rb7+ {[%clk 0:00:36]}  Kg8 {[%clk 0:00:14]} 42. Qxf6 {[%clk 0:00:36]}  Rc1+ {[%clk 0:00:13]} 43. Kh2 {[%clk 0:00:36]} 1-0


[Site "https://www.chess.com"]

[Event "Titled Tuesday Blitz May 9 Late 2023"]
[White "Marcziter, Dmitrii"]
[Black "Jovic, Stanoje"]
[WhiteFideId "13900765"]
[BlackFideId "905020"]
[WhiteElo "2162"]
[BlackElo "2236"]
[Result "0-1"]
[Round "11"]
[TimeControl "180+2"]
[Date "2023.05.09"]
[WhiteClock "0:00:14"]
[BlackClock "0:00:22"]

1. d4 {[%clk 0:03:00]}  Nf6 {[%clk 0:02:59]} 2. c4 {[%clk 0:02:59]}  e6 {[%clk 0:02:59]} 3. Nf3 {[%clk 0:02:58]}  b6 {[%clk 0:02:59]} 4. a3 {[%clk 0:02:58]}  d5 {[%clk 0:02:58]} 5. Nc3 {[%clk 0:02:55]}  Bb7 {[%clk 0:02:54]} 6. cxd5 {[%clk 0:02:54]}  exd5 {[%clk 0:02:54]} 7. Qa4+ {[%clk 0:02:54]}  Qd7 {[%clk 0:02:49]} 8. Qc2 {[%clk 0:02:53]}  c5 {[%clk 0:02:35]} 9. Ne5 {[%clk 0:02:48]}  Qe6 {[%clk 0:02:28]} 10. e3 {[%clk 0:02:46]}  a6 {[%clk 0:02:23]} 11. Bd3 {[%clk 0:02:34]}  g6 {[%clk 0:02:19]} 12. O-O {[%clk 0:02:31]}  Bg7 {[%clk 0:02:18]} 13. f4 {[%clk 0:02:27]}  O-O {[%clk 0:02:14]} 14. f5 {[%clk 0:02:25]}  Qd6 {[%clk 0:02:13]} 15. Bd2 {[%clk 0:02:16]}  Nc6 {[%clk 0:02:09]} 16. Nxc6 {[%clk 0:02:15]}  Bxc6 {[%clk 0:02:08]} 17. Be1 {[%clk 0:02:08]}  Bh6 {[%clk 0:02:00]} 18. Nd1 {[%clk 0:01:53]}  Rae8 {[%clk 0:01:46]} 19. Bg3 {[%clk 0:01:51]}  Qe7 {[%clk 0:01:42]} 20. Rf3 {[%clk 0:01:44]}  c4 {[%clk 0:01:35]} 21. Bf1 {[%clk 0:01:40]}  Bd7 {[%clk 0:01:28]} 22. Bh4 {[%clk 0:01:32]}  Bxf5 {[%clk 0:01:07]} 23. Rxf5 {[%clk 0:01:27]}  gxf5 {[%clk 0:01:05]} 24. Qxf5 {[%clk 0:01:26]}  Bg7 {[%clk 0:01:04]} 25. Nf2 {[%clk 0:01:19]}  Qe6 {[%clk 0:01:00]} 26. Qf3 {[%clk 0:01:15]}  Qxe3 {[%clk 0:00:55]} 27. Qxe3 {[%clk 0:01:08]}  Rxe3 {[%clk 0:00:53]} 28. Bxf6 {[%clk 0:00:56]}  Bxf6 {[%clk 0:00:52]} 29. Ng4 {[%clk 0:00:57]}  Re6 {[%clk 0:00:51]} 30. Nxf6+ {[%clk 0:00:57]}  Rxf6 {[%clk 0:00:51]} 31. Be2 {[%clk 0:00:57]}  Rf4 {[%clk 0:00:46]} 32. Rd1 {[%clk 0:00:56]}  b5 {[%clk 0:00:44]} 33. Bf3 {[%clk 0:00:56]}  Rd8 {[%clk 0:00:44]} 34. Kf2 {[%clk 0:00:55]}  a5 {[%clk 0:00:44]} 35. Ke3 {[%clk 0:00:54]}  Rf6 {[%clk 0:00:44]} 36. Kf2 {[%clk 0:00:49]}  Rb6 {[%clk 0:00:42]} 37. Re1 {[%clk 0:00:48]}  b4 {[%clk 0:00:41]} 38. axb4 {[%clk 0:00:46]}  axb4 {[%clk 0:00:41]} 39. Re5 {[%clk 0:00:45]}  b3 {[%clk 0:00:37]} 40. Bxd5 {[%clk 0:00:42]}  Rxd5 {[%clk 0:00:35]} 41. Rxd5 {[%clk 0:00:41]}  c3 {[%clk 0:00:36]} 42. Re5 {[%clk 0:00:36]}  Rf6+ {[%clk 0:00:32]} 43. Kg1 {[%clk 0:00:22]}  c2 {[%clk 0:00:32]} 44. Re1 {[%clk 0:00:21]}  Ra6 {[%clk 0:00:25]} 45. Kf2 {[%clk 0:00:17]}  Rd6 {[%clk 0:00:22]} 46. Ke3 {[%clk 0:00:16]}  Re6+ {[%clk 0:00:22]} 47. Kd2 {[%clk 0:00:14]}  Rxe1 {[%clk 0:00:22]} 0-1


[Site "https://www.chess.com"]